{"text_format":"3","workbook":"xlsx","n_sheets":11,"sheets":["총회(전국)","투표인(경기)","투표인(강원)","투표인(충북)","투표인(충남)","투표인(전북)","투표인(전남)","투표인(경북)","투표인(경남)","투표인(제주)","Sheet2"],"not_rendered":{"defined_names":30},"read":"whole","date_system":"1900"}

{"sheet":"총회(전국)","index":0,"n_rows":412,"n_cols":10,"rows_kept":412,"merged":[[0,0,0,8]]}
[{"$f":"\"선거인명단 (\"&B412&\")명\"","v":"선거인명단 (397)명"}]
["확인자 :       ","(서명)"]
["상       호","성    명","직위","참석자","서명","신분증","위임장","인감\n증명서","재직\n확인서류","비고"]
["경기",{"$f":"B5+B64","v":87}]
["경기남부",{"$f":"COUNTA(B6:B63)","v":58}]
["강남산업","한 재권"]
["강훈비료","강 귀근"]
["고려바이오 주식회사","김 영권"]
["농업회사법인 \n경기바이오 주식회사","신 은철"]
["주식회사고려관삼장","윤 병호"]
["주식회사 꿈에그린","이 은섭"]
["금광비료","송 숙자"]
["(주)기영비료","민 홍기"]
["농후퇴비","박 종주"]
["다산비료산업사","최 병욱"]
["대림비료","박 종응"]
["동우바이오 주식회사","이 대현"]
["두메바이오","이 현우"]
["무지개바이오비료","최 수만"]
["㈜미래환경산업","서 영근"]
["삼광농장비료","박 효근"]
["상지농장 농업회사법인 주식회사","김 용재"]
["㈜서울바이오 여주지점","구 자균"]
["㈜이레개발","남 병국"]
["농업회사법인㈜\n석강농장그린비료","김 선호"]
["주식회사 성주농업회사","정 호순"]
["주식회사 쓰리앤바이오","최 윤승"]
["신애원농장","박 동래"]
["신협성비료주식회사 (이천)","박 연봉"]
["안성퇴비영농조합법인","박 문재"]
["엘그린","이 상국"]
["여주영농조합법인","신 정옥"]
["농업회사법인\n용인비료㈜","안 명옥"]
["주식회사 영동흥산","임 진모"]
["주식회사 유진퇴비","김 형준"]
["농업회사법인 \n주식회사 옥토바이오","권 기억"]
["농업회사법인\n㈜옥토바이오청북지점","권 기억"]
["우리축산영농조합법인","박 준섭\n김 성덕"]
["유기자원영농조합법인","이 은순"]
["유일유기질비료","박 관호"]
["장군퇴비","김 홍주"]
["장성유기비료","권 혁진"]
["장암마을영농조합법인","김 학춘"]
["주식회사 정현그린텍","이 상운"]
["주식회사 조은비료","김 명희"]
["유나","신 동하"]
["농업회사법인 ㈜진산","황 병대"]
["청미바이오㈜","김 태오"]
["케이지케미칼(주) \n이천공장","신 영기"]
["태농비료산업사","박 상욱"]
["토비","심 연숙"]
["푸른들비료","진 현호"]
["농업회사법인 주식회사풍한바이오","심 양구"]
["한결양돈영농조합","정 영호"]
["㈜해강바이오","나 기수"]
["협성영농조합법인","홍 현표"]
["화성비료","이 희환"]
["화성양돈영농조합","권 인식"]
["황토영농조합법인","강 영옥"]
["효성오앤비㈜ 안성공장","박 태헌"]
["농업회사법인㈜팜엔코","조 준희"]
["㈜유일비료농업회사법인","황 옥이"]
["신성바이오","김 현민\n김 하기"]
["경기북부",{"$f":"COUNTA(B65:B93)","v":29}]
["관인지구친환경농업작목반","박 중욱"]
["광신비료주식회사","이 정휘"]
["김포퇴비","윤 형수"]
["영농조합법인 대청","이 형호"]
["주식회사 동광그린텍","배 양수"]
["무궁화비료","송 용훈"]
["미래산업","김 종만"]
["(주)새한비료","김 순복"]
["서부축산","박 갑의"]
["석봉비료","오 세을"]
["승진비료","최 영주"]
["농업회사법인 신농비료 주식회사","유 재경"]
["㈜이피에스솔루션","공 민근"]
["농업회사법인 안일농장 주식회사","안 영기"]
["양평갈운유기농산","신 중현"]
["㈜영농지기","노 보균"]
["영평영송영농조합법인","박 경우"]
["자연비료공사","임 병열"]
["주식회사조원산업","추    용"]
["중앙비료","최 인수"]
["㈜지앤엘","김 성희"]
["참비","서 순희"]
["영농조합법인 \n참좋은가평비료","용 석호"]
["주식회사 창덕비료","고 재용"]
["주식회사 창성비료","허   은"]
["청미원자연순환센터","이 민영"]
["청용비료","최 은성"]
["통일농산","윤 현병"]
["한국농비","홍 현섭"]
["강원",{"$f":"COUNTA(B95:B117)","v":23}]
["농업회사법인 ㈜계성","권 미경"]
["계성양계영농조합법인","엄 현태"]
["고려그린남면영농조합법인","남 창현"]
["궁촌비료","안 기선"]
["궁촌영농조합법인","안 기선"]
["귀래농장","박 귀녀"]
["영농조합법인 두루미","박 종선"]
["미농휴머스","장 인명"]
["부림산업주식회사","이 종원"]
["산처럼영농조합법인","김 선묵"]
["서신영농조합법인","최 병락"]
["서진산업","유 지남"]
["세봉농장 축분비료","진 종명"]
["신청봉영농조합법인 \n소초지점","김 현자"]
["싱싱축산","김 덕영"]
["영월비료영농조합법인","엄 기만"]
["농업회사법인 \n이수농산㈜","김 학수"]
["청송영농조합법인","염 상기"]
["홍천양돈영농조합법인","심 윤보"]
["(자)횡성유기농산","오 양순"]
["㈜중부바이오텍","손 효석"]
["한미바이오","손 호원"]
["산내울영농조합법인","최 봉식"]
["충북",{"$f":"COUNTA(B119:B149)","v":31}]
["고구름영농조합법인","정 남수"]
["주식회사 고려그린","신 영민"]
["고려바이오 \n영농조합법인","정 석조"]
["㈜농경","구자균"]
["대농비료산업","서 삼례\n류 장열"]
["대덕에프알디㈜","박 현수"]
["㈜대부산업","박 영선"]
["주식회사 대원농산","이 근섭"]
["동신농산","김 기식"]
["영농조합법인 \n무지개농장","한 만혁"]
["㈜부농 맞춤음성지점","이 승수\n허 양무"]
["㈜서울바이오","구 자균"]
["(자)서울축산","나 성철"]
["㈜성신","송 영화\n김 진형"]
["㈜풍림옥천지점","전 경옥"]
["연우회영농조합","임 석규"]
["영농퇴비","이 도섭"]
["우화농장","김 정훈"]
["이원산업㈜","김 기호"]
["주식회사 정도","정 연근"]
["증평광역친환경영농조합법인","조 영석"]
["농업회사법인 주식회사 진들바이오","이 태구"]
["농업회사법인 진천광역친환경농업주식회사","곽 창근"]
["청풍양돈영농조합법인","손 병옥"]
["친환경우리소영농조합법인","황 진호"]
["㈜케이티지오 \n농업회사법인","김 삼수"]
["(주)코리아그린","윤 병삼"]
["한백 R&G","조 영석"]
["현대농산","오 세경"]
["㈜흙살림","이 태근"]
["농업회사법인 \n보문환경㈜","최 기웅"]
["충남",{"$f":"COUNTA(B151:B194)","v":44}]
["주식회사 건강한퇴비","최 상술"]
["계룡비료","이 도연"]
["고려종합비료","이 현명"]
["국일유기질비료","김 계월"]
["금덕농원비료","윤 명희\n이 계성"]
["농업회사법인 석계㈜","박 강순"]
["농업회사법인 ㈜농진산업","강 광석"]
["농업회사법인 주식회사 옥토앤자인","최 대휴"]
["농업회사법인 태림㈜","권 기억"]
["농업회사법인㈜팜엔코","조 준희"]
["당진유기질톱밥비료","송 영득"]
["당진자연세계영농조합","이 재만"]
["동산유기질","최 원식"]
["영농조합법인 루산","정 상식"]
["부여버섯원료영농조합법인","이 계승"]
["삼성바이오","박 명일"]
["주식회사 삼화그린텍","윤 호준"]
["서해실업㈜","안 충호"]
["성성비료산업","황 선옥"]
["성환배영농조합법인","장    용"]
["주식회사 세환산업 서산지점","예 준석"]
["신기산업㈜","김 동복"]
["연기영농조합법인","황 순광"]
["영농조합법인농가원 교항지점","신 덕철"]
["우림산업㈜","남 석현"]
["유농바이텍㈜","조 은형"]
["농업회사법인 인주퇴비","한 대희"]
["주식회사 참농","김 종태"]
["㈜대지개발","이 동석"]
["㈜미토","김 준식"]
["㈜바이오포스트","이 선이"]
["㈜바이오넬","박 영일"]
["㈜녹색비료","이 양주"]
["㈜태한산업","양 영권"]
["㈜한국바이오텍발효산업","오 충길"]
["㈜풍림","전 경옥"]
["케이지케미칼㈜ \n보령공장","신 영기"]
["한국바이오텍","권 미화"]
["주식회사 한밭비료","이 건태"]
["효성오앤비㈜","박 태헌"]
["그린비료","김 완진"]
["한국피롤자재","이 창규"]
["그린동방산업","오 광환"]
["㈜부농 공주지점","허 양무"]
["전북",{"$f":"COUNTA(B196:B240)","v":45}]
["금강바이오텍","강 금례"]
["농업회사법인유한회사 비이티","허 만수"]
["대농영농조합법인","김 종현"]
["대지영농조합법인","민 정생"]
["마이유기질비료","배 성기"]
["바래봉친환경작목반영농조합법인","박 영수"]
["바른영농조합법인","황 인규"]
["복지비료영농조합법인","김 병규"]
["봉동영농조합법인","소 병윤"]
["신농비료산업","윤 병근"]
["아주산업","김 태민"]
["영농조합법인 부성","오 재만"]
["(유)금강농산","이 갑찬"]
["(유)삼상퇴비산업","양 종락"]
["(유)세진바이오","김 병기"]
["(유)청정바이오산업","유 순희"]
["(주)부농 완주지점","이 승수\n허 양무"]
["㈜삼화그린텍 익산지점","윤 호준"]
["㈜삼호유비","김 영태"]
["주식회사 농우","조영순"]
["주식회사 상림 농업회사법인","이 원창"]
["쌍치영농조합법인","이 헌영"]
["새남원영농조합법인","장 경재"]
["새만금영농조합법인","최 호승"]
["순창농민영농조합법인","박 경령"]
["영농조합법인 신흥바이오","문 우일"]
["영농조합법인 양지","정 영호"]
["농업회사법인 \n에스바이오 주식회사","심 문성"]
["영농조합법인 자연바이오","김 용호"]
["자연영농조합법인","김 용호"]
["영농조합법인 참농","이 진규"]
["창신바이오","김 태진"]
["케이지케미칼(주) 김제공장","신 영기"]
["주식회사 케이티지오 농업회사법인 전주지점","김 삼수"]
["(유)태흥축산위탁영농","이 석주"]
["유한회사 푸른솔케미칼(김제지점)","허 인호"]
["한국바이오영농조합  정읍지점","최 공엽"]
["호남바이오영농조합법인","양 길승"]
["화성그린비료","이 희방"]
["황금축산영농조합법인","황 인수"]
["농업회사법인 ㈜흙농","김 귀호"]
["(주) 희성산업 김제지점","유 태호"]
["(유)희성이엔텍","최 숙자"]
["㈜한국협화 정읍지점","김 재룡"]
["㈜서울바이오 완주지점","구 자균"]
["전남",{"$f":"COUNTA(B242:B291)","v":50}]
["농업회사법인 거명 \n주식회사","반 경진"]
["㈜고코코리아","정 현경"]
["농업회사법인 주식회사 고흥흙사랑","장 광석\n김 종욱"]
["농업회사법인 목인산업유한회사","송 성철"]
["농업회사법인 유기자원 \n주식회사","윤 주석"]
["㈜청록바이오","이   남"]
["나주동강종합영농조합법인","박 홍채"]
["낙안유기질비료","김 선일"]
["(주)남도농산","전 병하"]
["㈜농부","이 갑찬"]
["㈜농원비료","김 성환"]
["능성영농조합법인","조 동기"]
["대광영농조합법인 \n함평지소","이 종심"]
["㈜대덕바이오텍","하 영훈"]
["대풍비료주식회사","류 재택"]
["로하스코㈜","장 병윤"]
["무지개영농조합법인","신 화순"]
["㈜민국산업 미암지점","최 제영"]
["봉강친환경영농조합법인","박 광기"]
["삼원바이오비료영농조합법인","박    현"]
["새터","정 인승"]
["농업회사법인 (유)수북농업","김 종수"]
["주식회사 심청유기질비료","이 지숙"]
["씨알유기농영농조합법인","정 은정"]
["양정영농조합법인","전 보은"]
["영산영농조합","김 용팔"]
["옥전영농조합법인","조 윤영"]
["옥천영농조합법인","김 종순"]
["(유)영진산업","박 학선"]
["유한회사대성바이오","윤 영랑"]
["주식회사 대성케미칼","윤 영랑"]
["주식회사 유기농산","권 옥희"]
["주식회사 태창바이오텍","전 재열"]
["유암산업주식회사","박 문주"]
["유자골영농조합법인","조 준호"]
["농업회사법인 유한회사 \n전남산업"," 김 승용 "]
["농업회사법인 조은산업 주식회사","문 미경"]
["태흥종축영농조합법인","전 성주"]
["팔영유기질비료","송 창석"]
["푸른친환경영농조합법인","조 영탁"]
["한결유기축산영농법인","남 종희"]
["한국바이오","서 성임"]
["향토영농조합법인","조 영섭"]
["(유)호남자원재생","김 종식"]
["호남축산영농조합법인","박 정애"]
["흙고운주식회사","김 성민"]
["농업회사법인 흥양유기질비료㈜","공 완실"]
["농업회사법인 (유)유원","남 옥선"]
["혁신영농조합법인","조 미영"]
["농업회사법인 ㈜흥부","강 숙연"]
["경북",{"$f":"COUNTA(B293:B357)","v":65}]
["개진영농조합법인","허 만원"]
["금화영농조합법인","임 욱한"]
["주식회사 경림","장 근호"]
["경주비료","이 점순"]
["금계상사","류 욱하"]
["금농비료산업사","전 성우"]
["농업회사법인 늘푸른주식회사","송 창근"]
["농소새마을농축산영농조합법인","김 동복"]
["대명영농조합법인","이 원자"]
["대평계분비료㈜","김 재곤"]
["㈜경동상사","최 성국"]
["㈜경진 농업회사법인","장 인석"]
["㈜동양그린바이오","나 종광"]
["동원부산물비료","장 병갑"]
["주식회사 무계상사","유 명하"]
["무릉유기농산영농조합법인","이 충원"]
["㈜미광","이 태식"]
["영농조합법인봉화계분","손 범석"]
["봉화영농조합법인","이    란"]
["비랑영농작업반 합자회사","박 성우"]
["삼녕영농조합법인","권 태봉"]
["삼득산업주식회사안동지점","권 오봉"]
["삼솔영농조합법인","박 용균"]
["상공원예영농조합법인","정 인진"]
["(주)상록농산","김 영두"]
["농업회사법인 \n주식회사 새금강비료","서 경희"]
["세종농산영농조합법인","석 준식"]
["㈜세진","안 홍석"]
["㈜승진그린텍 안강공장","양 성완"]
["대한비료 희망농원복지협동회","김 종학"]
["신라유기질비료","이 금숙"]
["안정농민후계자위탁영농㈜","김 현수"]
["주식회사 알찬","노 학진"]
["영양그린비료","박 창환"]
["영창바이오","김 정식"]
["영창영농조합법인","김 재근"]
["영농조합법인울진광역친환경농업단지조성사업단","윤 태윤"]
["영덕대게비료영농조합","박 창언"]
["은성영농조합법인","이 명우"]
["의성서부영농조합법인","이 충원"]
["농업회사법인 주식회사 \n이레팜","박 형록"]
["㈜정한그린테크","정 은미"]
["(주)제농유기질비료","서 경애"]
["흥부중앙영농조합법인","정 주석"]
["지천영농조합법인","이 인호"]
["지풍영농조합법인","신 상옥"]
["진들농산","안 경숙"]
["㈜차세대케미칼","주 동엽"]
["참바이오농업회사법인㈜","황 재곤"]
["추농농업회사법인㈜","이 의향"]
["치산영농조합법인","고 봉수"]
["주식회사케이티지오농업회사법인 예천지사","김 삼수"]
["키움 아그로","김 영애"]
["태산영농조합법인","서 상욱"]
["주식회사 태흥에프엔지","이 종수"]
["㈜포포텍","김 인순"]
["포항부산물비료","이 석희"]
["㈜풍산비료","이 운선"]
["풍원영농조합법인","원 지훈"]
["㈜풍농 영천공장","이 종철\n송 상재     "]
["한성비료","이 한묵"]
["주식회사 햇토비","김 영배"]
["흙사랑 영농조합법인","이 충원"]
["(주)흥주농업회사법인","이 규대"]
["케이지케미칼㈜ 청도공장","신 영기"]
["경남",{"$f":"COUNTA(B359:B406)","v":48}]
["가델유기축산영농조합법인","배 인숙"]
["주식회사 개원산업","노 학진"]
["고려종합비료","이 상윤"]
["고성퇴비영농조합법인","조 원래"]
["주식회사 누보","이 경원\n김 창균"]
["대건자원화주식회사","이 건숙"]
["농업회사법인 \n대곡산비료 주식회사","박 종근"]
["두전 주식회사","황 경연"]
["땅살림 영농조합법인","안 희복"]
["㈜명신비료","정 순길"]
["보성골드비료","서 두용"]
["산청양계영농조합","이 민희"]
["㈜삼림","장 준환"]
["삼전비료","정 경자"]
["성은비료","김 경순"]
["주식회사 새농","정 미암"]
["수정유기","김 현숙"]
["㈜승진그린텍","양 성완"]
["㈜신안그로","정 한택"]
["합자회사신안위탁영농회사","이 청우"]
["주식회사 아라비료","윤 민식"]
["대상바이오","김 영찬"]
["영오축산분뇨영농조합법인","허 남흥"]
["㈜엔.에이.텍","최 용진"]
["옥토유기질비료영농조합법인","김 상곤"]
["우리영농조합법인 두레","김 복근"]
["우성비료"," 추 영효 "]
["울주영농조합법인","장 일한"]
["유진그린비료㈜","정 혜숙"]
["육림퇴비","진 근대"]
["의령유기질퇴비","이 혜자"]
["의령으뜸영농조합법인","김 두철"]
["주식회사 이앤씨","이 태순"]
["제일비료","김 장희"]
["진주비료영농조합법인","최 남석"]
["청솔영농조합법인","성 낙구"]
["청하농산","손 경식"]
["㈜추농","하 성태"]
["축산퇴비","이주연"]
["큰골비료","봉 정희\n박 종근"]
["주식회사 태양비료","엄 주석"]
["주식회사 통영유기산업","이 순옥"]
["㈜한농산업","정 귀자"]
["한림유기산업","박 성수"]
["한영바이오 주식회사","한 영희"]
["현대특산"," 윤 현규 "]
["형제영농조합법인","박 인식"]
["흥전농산","김 관선"]
["제주",{"$f":"COUNTA(B408:B411)","v":4}]
["맛미유기비료","이 현석"]
["비료마을","박 병엽"]
["세미영농조합법인","문 인수"]
["한라산영농조합법인","박 원홍"]
["총회참석",{"$f":"COUNTA(B408:B411,B359:B406,B293:B357,B242:B291,B196:B240,B151:B194,B119:B149,B95:B117,B65:B93,B6:B63)","v":397}]

{"sheet":"투표인(경기)","index":1,"n_rows":94,"n_cols":10,"rows_kept":94,"merged":[[0,0,0,9]]}
[{"$f":"\"선거인명단 (\"&B4&\")명\"","v":"선거인명단 (87)명"}]
["확인자 :       ","(서명)"]
["상       호","성    명","직위","참석자","서명","신분증","위임장","인감\n증명서","재직\n확인서류","비고"]
["경기",87]
["경기남부",58]
["강남산업","한 재권"]
["강훈비료","강 귀근"]
["농업회사법인 \n경기바이오(주)","신 은철"]
["주식회사고려관삼장","윤 병호"]
["고려바이오 주식회사","김 영권"]
["주식회사 꿈에그린","이 은섭"]
["금광비료","송 숙자"]
["(주)기영비료","민 홍기"]
["농후퇴비","박 종주"]
["다산비료산업사","최 병욱"]
["대림비료","박 종응"]
["동우바이오 주식회사","이 대현"]
["두메바이오","이 현우"]
["무지개바이오비료","최 수만"]
["㈜미래환경산업","서 영근"]
["삼광농장비료","박 효근"]
["상지농장 \n농업회사법인 (주)","김 용재"]
["㈜서울바이오 여주지점","구 자균"]
["㈜이레개발","남 병국"]
["농업회사법인㈜\n석강농장그린비료","김 선호"]
["주식회사 성주농업회사","정 호순"]
["주식회사 쓰리앤바이오","최 윤승"]
["신성바이오","김 현민\n김 하기"]
["신애원농장","박 동래"]
["신협성비료(주) ","박 연봉"]
["안성퇴비영농조합법인","박 문재"]
["엘그린","이 상국"]
["여주영농조합법인","신 정옥"]
["주식회사 영동흥산","임 진모"]
["농업회사법인 \n주식회사 옥토바이오","권 기억"]
["농업회사법인 \n(주)옥토바이오청북지점","권 기억"]
["농업회사법인\n용인비료㈜","안 명옥"]
["우리축산영농조합법인","박 준섭\n김 성덕"]
["유기자원영농조합법인","이 은순"]
["㈜유일비료\n농업회사법인","황 옥이"]
["유일유기질비료","박 관호"]
["주식회사 유진퇴비","김 형준"]
["장군퇴비","김 홍주"]
["장성유기비료","권 혁진"]
["장암마을영농조합법인","김 학춘"]
["주식회사 정현그린텍","이 상운"]
["주식회사 조은비료","김 명희"]
["유나","신 동하"]
["농업회사법인 ㈜진산","황 병대"]
["청미바이오㈜","김 태오"]
["케이지케미칼\n(주) 이천공장","신 영기"]
["태농비료산업사","박 상욱"]
["토비","심 연숙"]
["푸른들비료","진 현호"]
["농업회사법인 \n㈜ 풍한바이오"," 심 양구 "]
["한결양돈영농조합","정 영호"]
["㈜해강바이오","나 기수"]
["협성영농조합법인","홍 현표"]
["화성비료","이 희환"]
["화성양돈영농조합","권 인식"]
["황토영농조합법인","강 영옥"]
["효성오앤비㈜ 안성공장","박 태헌"]
["농업회사법인㈜팜엔코","조준희"]
["경기북부",29]
["관인지구\n친환경농업작목반","박 중욱"]
["광신비료주식회사","이 정휘"]
["김포퇴비","윤 형수"]
["영농조합법인 대청","이 형호"]
["주식회사 동광그린텍","배 양수"]
["무궁화비료","송 용훈"]
["미래산업","김종만"]
["(주)새한비료","김 순복"]
["서부축산","박 갑의"]
["석봉비료","오 세을"]
["승진비료","최 영주"]
["농업회사법인\n 신농비료 (주)","유 재경"]
["㈜이피에스솔루션","공 민근"]
["농업회사법\n인 안일농장 (주)","안 영기"]
["양평갈운유기농산","신 중현"]
["㈜영농지기","노 보균"]
["영평영송영농조합법인","박 경우"]
["자연비료공사","임 병열"]
["주식회사조원산업","추    용"]
["중앙비료","최 인수 "]
["㈜지앤엘","김 성희"]
["참비","서 순희"]
["영농조합법인 \n참좋은가평비료","용 석호"]
["주식회사 창덕비료","고 재용"]
["주식회사 창성비료","허   은"]
["청미원자연순환센터","이 민영"]
["청용비료","최 은성"]
["통일농산","윤 현병"]
["한국농비","홍 현섭"]
["선거인명단 ",87]

{"sheet":"투표인(강원)","index":2,"n_rows":28,"n_cols":10,"rows_kept":28,"merged":[[0,0,0,8]]}
[{"$f":"\"선거인명단 (\"&B4&\")명\"","v":"선거인명단 (23)명"}]
["확인자 :       ","(서명)"]
["상       호","성    명","직위","참석자","서명","신분증","위임장","인감\n증명서","재직\n확인서류","비고"]
["강원",{"$f":"B28","v":23}]
["농업회사법인 ㈜계성","권 미경"]
["계성양계영농조합법인","엄 현태"]
["고려그린남면영농조합법인","남 창현"]
["궁촌비료","안 기선"]
["궁촌영농조합법인","안 기선"]
["귀래농장","박 귀녀"]
["영농조합법인 두루미","박 종선"]
["미농휴머스","장 인명"]
["부림산업주식회사","이 종원"]
["산처럼영농조합법인","김 선묵"]
["서신영농조합법인","최 병락"]
["서진산업","유 지남"]
["세봉농장 축분비료","진 종명"]
["신청봉영농조합법인 \n소초지점","김 현자 "]
["싱싱축산","김 덕영"]
["영월비료영농조합법인","엄 기만"]
["농업회사법인 \n이수농산㈜","김 학수"]
["청송영농조합법인","염 상기"]
["홍천양돈영농조합법인","심 윤보"]
["(자)횡성유기농산","오 양순"]
["㈜중부바이오텍","손 효석"]
["한미바이오","손 호원"]
["산내울영농조합법인","최 봉식"]
["선거인명단",{"$f":"COUNTA(B5:B27)","v":23}]

{"sheet":"투표인(충북)","index":3,"n_rows":36,"n_cols":10,"rows_kept":36,"merged":[[0,0,0,9]]}
[{"$f":"\"선거인명단 (\"&B4&\")명\"","v":"선거인명단 (31)명"}]
["확인자 :       ","(서명)"]
["상       호","성    명","직위","참석자","서명","신분증","위임장","인감\n증명서","재직\n확인서류","비고"]
["충북",{"$f":"B36","v":31}]
["고구름영농조합법인","정 남수"]
["주식회사 고려그린","신 영민"]
["고려바이오 \n영농조합법인","정 석조"]
["㈜농경","구자균"]
["대농비료산업","서 삼례\n류 장열"]
["대덕에프알디㈜","박 현수"]
["㈜대부산업","박 영선"]
["주식회사 대원농산","이 근섭"]
["동신농산","김 기식"]
["영농조합법인 \n무지개농장","한 만혁"]
["㈜부농 맞춤음성지점","이 승수\n허 양무"]
["㈜서울바이오","구 자균"]
["(자)서울축산","나 성철"]
["㈜성신","송 영화\n김 진형"]
["㈜풍림옥천지점","전 경옥"]
["연우회영농조합","임 석규"]
["영농퇴비","이 도섭"]
["우화농장","김 정훈"]
["이원산업㈜","김 기호"]
["주식회사 정도","정 연근"]
["증평광역친환경영농조합법인","조 영석"]
["농업회사법인 주식회사 진들바이오","이 태구"]
["농업회사법인 진천광역친환경농업주식회사","곽 창근"]
["청풍양돈영농조합법인","손 병옥"]
["친환경우리소영농조합법인","황 진호"]
["㈜케이티지오 \n농업회사법인","김 삼수"]
["(주)코리아그린","윤 병삼"]
["한백 R&G","조 영석"]
["현대농산","오 세경"]
["㈜흙살림","이 태근"]
["농업회사법인 \n보문환경㈜","최 기웅"]
["선거인명단",{"$f":"COUNTA(B5:B35)","v":31}]

{"sheet":"투표인(충남)","index":4,"n_rows":49,"n_cols":10,"rows_kept":49,"merged":[[0,0,0,9]]}
[{"$f":"\"선거인명단 (\"&B49&\")명\"","v":"선거인명단 (44)명"}]
["확인자 :       ","(서명)"]
["상       호","성    명","직위","참석자","서명","신분증","위임장","인감\n증명서","재직\n확인서류","비고"]
["충남",{"$f":"B49","v":44}]
["주식회사 건강한퇴비","최 상술"]
["계룡비료","이 도연"]
["고려종합비료","이 현명"]
["국일유기질비료","김 계월"]
["금덕농원비료","윤 명희\n이 계성"]
["농업회사법인 석계㈜","박 강순"]
["농업회사법인 ㈜농진산업","강 광석"]
["농업회사법인 주식회사 옥토앤자인","최 대휴"]
["농업회사법인 태림㈜","권 기억"]
["농업회사법인㈜팜엔코","조 준희"]
["당진유기질톱밥비료","송 영득"]
["당진자연세계영농조합","이 재만"]
["동산유기질","최 원식"]
["영농조합법인 루산","정 상식"]
["부여버섯원료영농조합법인","이 계승"]
["삼성바이오","박 명일"]
["주식회사 삼화그린텍","윤 호준"]
["서해실업㈜","안 충호"]
["성성비료산업","황 선옥"]
["성환배영농조합법인","장    용"]
["주식회사 세환산업 서산지점","예 준석"]
["신기산업㈜","김 동복"]
["연기영농조합법인","황 순광"]
["영농조합법인농가원 교항지점","신 덕철"]
["우림산업㈜","남 석현"]
["유농바이텍㈜","조 은형"]
["농업회사법인 인주퇴비","한 대희"]
["주식회사 참농","김 종태"]
["㈜대지개발","이 동석"]
["㈜미토","김 준식"]
["㈜바이오포스트","이 선이"]
["㈜바이오넬","박 영일"]
["㈜녹색비료","이 양주"]
["㈜태한산업","양 영권"]
["㈜한국바이오텍발효산업","오 충길"]
["㈜풍림","전 경옥"]
["케이지케미칼㈜ \n보령공장","신 영기"]
["한국바이오텍","권 미화"]
["주식회사 한밭비료","이 건태"]
["효성오앤비㈜","박 태헌"]
["그린비료","김 완진"]
["한국피롤자재","이 창규"]
["그린동방산업","오 광환"]
["㈜부농 공주지점","허 양무"]
["선거인명단 ",{"$f":"COUNTA(B5:B48)","v":44}]

{"sheet":"투표인(전북)","index":5,"n_rows":50,"n_cols":10,"rows_kept":50,"merged":[[0,0,0,9]]}
[{"$f":"\"선거인명단 (\"&B50&\")명\"","v":"선거인명단 (45)명"}]
["확인자 :       ","(서명)"]
["상       호","성    명","직위","참석자","서명","신분증","위임장","인감\n증명서","재직\n확인서류","비고"]
["전북",{"$f":"B50","v":45}]
["금강바이오텍","강 금례"]
["농업회사법인유한회사 비이티","허 만수"]
["대농영농조합법인","김 종현"]
["대지영농조합법인","민 정생"]
["마이유기질비료","배 성기"]
["바래봉친환경작목반영농조합법인","박 영수"]
["바른영농조합법인","황 인규"]
["복지비료영농조합법인","김 병규"]
["봉동영농조합법인","소 병윤"]
["신농비료산업","윤 병근"]
["아주산업","김 태민"]
["영농조합법인 부성","오 재만"]
["(유)금강농산","이 갑찬"]
["(유)삼상퇴비산업","양 종락"]
["(유)세진바이오","김 병기"]
["(유)청정바이오산업","유 순희"]
["(주)부농 완주지점","이 승수\n허 양무"]
["㈜삼화그린텍 익산지점","윤 호준"]
["㈜삼호유비","김 영태"]
["주식회사 농우","조 영순"]
["주식회사 상림 농업회사법인","이 원창"]
["쌍치영농조합법인","이 헌영"]
["새남원영농조합법인","장 경재"]
["새만금영농조합법인","최 호승"]
["순창농민영농조합법인","박 경령"]
["영농조합법인 신흥바이오","문 우일"]
["영농조합법인 양지","정 영호"]
["농업회사법인 \n에스바이오 주식회사","심 문성"]
["영농조합법인 자연바이오","김 용호"]
["자연영농조합법인","김 용호"]
["영농조합법인 참농","이 진규"]
["창신바이오","김 태진"]
["케이지케미칼(주) 김제공장","신 영기"]
["주식회사 케이티지오 농업회사법인 전주지점","김 삼수"]
["(유)태흥축산위탁영농","이 석주"]
["유한회사 푸른솔케미칼(김제지점)","허 인호"]
["한국바이오영농조합  정읍지점","최 공엽"]
["호남바이오영농조합법인","양 길승"]
["화성그린비료","이 희방"]
["황금축산영농조합법인","황 인수"]
["농업회사법인 ㈜흙농","김 귀호"]
["(주) 희성산업 김제지점","유 태호"]
["(유)희성이엔텍","최 숙자"]
["㈜한국협화 정읍지점","김 재룡"]
["㈜서울바이오 완주지점","구 자균"]
["선거인명단 ",{"$f":"COUNTA(B5:B49)","v":45}]

{"sheet":"투표인(전남)","index":6,"n_rows":55,"n_cols":10,"rows_kept":55,"merged":[[0,0,0,9]]}
[{"$f":"\"선거인명단 (\"&B55&\")명\"","v":"선거인명단 (50)명"}]
["확인자 :       ","(서명)"]
["상       호","성    명","직위","참석자","서명","신분증","위임장","인감\n증명서","재직\n확인서류","비고"]
["전남",{"$f":"B55","v":50}]
["농업회사법인 거명 \n주식회사","반 경진"]
["㈜고코코리아","정 현경"]
["농업회사법인 주식회사 고흥흙사랑","장 광석\n김 종욱"]
["농업회사법인 목인산업유한회사","송 성철"]
["농업회사법인 유기자원 \n주식회사","윤 주석"]
["㈜청록바이오","이   남"]
["나주동강종합영농조합법인","박 홍채"]
["낙안유기질비료","김 선일"]
["(주)남도농산","전 병하"]
["㈜농부","이 갑찬"]
["㈜농원비료","김 성환"]
["능성영농조합법인","조 동기"]
["대광영농조합법인 \n함평지소","이 종심"]
["㈜대덕바이오텍","하 영훈"]
["대풍비료주식회사","류 재택"]
["로하스코㈜","장 병윤"]
["무지개영농조합법인","신 화순"]
["㈜민국산업 미암지점","최 제영"]
["봉강친환경영농조합법인","박 광기"]
["삼원바이오비료영농조합법인","박    현"]
["새터","정 인승"]
["농업회사법인 (유)수북농업","김 종수"]
["주식회사 심청유기질비료","이 지숙"]
["씨알유기농영농조합법인","정 은정"]
["양정영농조합법인","전 보은"]
["영산영농조합","김 용팔"]
["옥전영농조합법인","조 윤영"]
["옥천영농조합법인","김 종순"]
["(유)영진산업","박 학선"]
["유한회사대성바이오","윤영랑"]
["주식회사 대성케미칼","윤 영랑"]
["주식회사 유기농산","권 옥희"]
["주식회사 태창바이오텍","전 재열"]
["유암산업주식회사","박 문주"]
["유자골영농조합법인","조 준호"]
["농업회사법인 유한회사 \n전남산업"," 김 승용 "]
["농업회사법인 조은산업 주식회사","문 미경"]
["태흥종축영농조합법인","전 성주"]
["팔영유기질비료","송 창석"]
["푸른친환경영농조합법인","조영탁"]
["한결유기축산영농법인","남 종희"]
["한국바이오","서 성임"]
["향토영농조합법인","조 영섭"]
["(유)호남자원재생","김 종식"]
["호남축산영농조합법인","박 정애"]
["흙고운주식회사","김 성민"]
["농업회사법인 흥양유기질비료㈜","공 완실"]
["농업회사법인 (유)유원","남 옥선"]
["혁신영농조합법인","조 미영"]
["농업회사법인 ㈜흥부","강 숙연"]
["선거인명단 ",{"$f":"COUNTA(B5:B54)","v":50}]

{"sheet":"투표인(경북)","index":7,"n_rows":70,"n_cols":10,"rows_kept":70,"merged":[[0,0,0,9]]}
[{"$f":"\"선거인명단 (\"&B70&\")명\"","v":"선거인명단 (65)명"}]
["확인자 :       ","(서명)"]
["상       호","성    명","직위","참석자","서명","신분증","위임장","인감\n증명서","재직\n확인서류","비고"]
["경북",{"$f":"B70","v":65}]
["개진영농조합법인","허 만원"]
["금화영농조합법인","임 욱한"]
["주식회사 경림","장 근호"]
["경주비료","이 점순"]
["금계상사","류 욱하"]
["금농비료산업사","전 성우"]
["농업회사법인 늘푸른주식회사","송 창근"]
["농소새마을농축산영농조합법인","김 동복"]
["대명영농조합법인","이 원자"]
["대평계분비료㈜","김 재곤"]
["㈜경동상사","최 성국"]
["㈜경진 농업회사법인","장 인석"]
["㈜동양그린바이오","나 종광"]
["동원부산물비료","장 병갑"]
["주식회사 무계상사","유 명하"]
["무릉유기농산영농조합법인","이 충원"]
["㈜미광","이 태식"]
["영농조합법인봉화계분","손 범석"]
["봉화영농조합법인","이    란"]
["비랑영농작업반 합자회사","박 성우"]
["삼녕영농조합법인","권 태봉"]
["삼득산업주식회사안동지점","권 오봉"]
["삼솔영농조합법인","박 용균"]
["상공원예영농조합법인","정 인진"]
["(주)상록농산","김 영두"]
["농업회사법인 \n주식회사 새금강비료","서경희"]
["세종농산영농조합법인","석 준식"]
["㈜세진","안 홍석"]
["㈜승진그린텍 안강공장","양 성완"]
["대한비료 희망농원복지협동회","김 종학"]
["신라유기질비료","이 금숙"]
["안정농민후계자위탁영농㈜","김 현수"]
["주식회사 알찬","노 학진"]
["영양그린비료","박 창환"]
["영창바이오","김 정식"]
["영창영농조합법인","김 재근"]
["영농조합법인울진광역친환경농업단지조성사업단","윤 태윤"]
["영덕대게비료영농조합","박 창언"]
["은성영농조합법인","이 명우"]
["의성서부영농조합법인","이 충원"]
["농업회사법인 주식회사 \n이레팜","박 형록"]
["㈜정한그린테크","정 은미"]
["(주)제농유기질비료","서 경애"]
["흥부중앙영농조합법인","정 주석"]
["지천영농조합법인","이 인호"]
["지풍영농조합법인","신 상옥"]
["진들농산","안 경숙"]
["㈜차세대케미칼","주 동엽"]
["참바이오농업회사법인㈜","황 재곤"]
["추농농업회사법인㈜","이의향"]
["치산영농조합법인","고 봉수"]
["주식회사케이티지오농업회사법인 예천지사","김 삼수"]
["키움 아그로","김 영애"]
["태산영농조합법인","서 상욱"]
["주식회사 태흥에프엔지","이 종수"]
["㈜포포텍","김 인순"]
["포항부산물비료","이 석희"]
["㈜풍산비료","이 운선"]
["풍원영농조합법인","원 지훈"]
["㈜풍농 영천공장","이 종철\n송 상재     "]
["한성비료","이 한묵"]
["주식회사 햇토비","김 영배"]
["흙사랑 영농조합법인","이 충원"]
["(주)흥주농업회사법인","이 규대"]
["케이지케미칼㈜ 청도공장","신 영기"]
["선거인명단",{"$f":"COUNTA(B5:B69)","v":65}]

{"sheet":"투표인(경남)","index":8,"n_rows":53,"n_cols":10,"rows_kept":53,"merged":[[0,0,0,9]]}
[{"$f":"\"선거인명단 (\"&B53&\")명\"","v":"선거인명단 (48)명"}]
["확인자 :       ","(서명)"]
["상       호","성    명","직위","참석자","서명","신분증","위임장","인감\n증명서","재직\n확인서류","비고"]
["경남",{"$f":"B53","v":48}]
["가델유기축산영농조합법인","배 인숙"]
["주식회사 개원산업","노 학진"]
["고려종합비료","이 상윤"]
["고성퇴비영농조합법인","조 원래"]
["주식회사 누보","이 경원\n김 창균"]
["대건자원화주식회사","이 건숙"]
["농업회사법인 \n대곡산비료 주식회사","박 종근"]
["두전 주식회사","황 경연"]
["땅살림 영농조합법인","안 희복"]
["㈜명신비료","정 순길"]
["보성골드비료","서 두용"]
["산청양계영농조합","이 민희"]
["㈜삼림","장 준환"]
["삼전비료","정 경자"]
["성은비료","김 경순"]
["주식회사 새농","정미암"]
["수정유기","김 현숙"]
["㈜승진그린텍","양 성완"]
["㈜신안그로","정 한택"]
["합자회사신안위탁영농회사","이 청우"]
["주식회사 아라비료","윤 민식"]
["대상바이오","김 영찬"]
["영오축산분뇨영농조합법인","허 남흥"]
["㈜엔.에이.텍","최 용진"]
["옥토유기질비료영농조합법인","김 상곤"]
["우리영농조합법인 두레","김 복근"]
["우성비료"," 추 영효 "]
["울주영농조합법인","장 일한"]
["유진그린비료㈜","정 혜숙"]
["육림퇴비","진 근대"]
["의령유기질퇴비","이 혜자"]
["의령으뜸영농조합법인","김 두철"]
["주식회사 이앤씨","이 태순"]
["제일비료","김 장희"]
["진주비료영농조합법인","최 남석"]
["청솔영농조합법인","성 낙구"]
["청하농산","손 경식"]
["㈜추농","하 성태"]
["축산퇴비","이주연"]
["큰골비료","봉 정희\n박 종근"]
["주식회사 태양비료","엄 주석"]
["주식회사 통영유기산업","이 순옥"]
["㈜한농산업","정 귀자"]
["한림유기산업","박 성수"]
["한영바이오 주식회사","한 영희"]
["현대특산","윤 현규"]
["형제영농조합법인","박 인식"]
["흥전농산","김 관선"]
["선거인명단 ",{"$f":"COUNTA(B5:B52)","v":48}]

{"sheet":"투표인(제주)","index":9,"n_rows":9,"n_cols":10,"rows_kept":9,"merged":[[0,0,0,9]]}
[{"$f":"\"선거인명단 (\"&B9&\")명\"","v":"선거인명단 (4)명"}]
["확인자 :       ","(서명)"]
["상       호","성    명","직위","참석자","서명","신분증","위임장","인감\n증명서","재직\n확인서류","비고"]
["제주",{"$f":"COUNTA(B5:B8)","v":4}]
["맛미유기비료","이 현석"]
["비료마을","박 병엽"]
["세미영농조합법인","문 인수"]
["한라산영농조합법인","박 원홍"]
["선거인명단",{"$f":"COUNTA(B5:B8)","v":4}]

{"sheet":"Sheet2","index":10,"n_rows":1,"n_cols":1,"rows_kept":1}
["1122\n3344"]